Workbook

Sheet MSU
B1: Juuso Luostarinen | E1: 7.9.1989 Joensuu
B2: SUPERPESIS | E2: Runkosarja | I2: Kärkilyönnit (KL), pesänvälit | P2: Ylempi loppusarja | W2: Alempi loppusarja | AD2: Arvo-ottelut | AH2: Mitalit
B3: Vuosi | C3: Sija | D3: Seura | E3: OTT | F3: KUN | G3: LÖI | H3: TOI | I3: KL | J3: 0 > 1 | K3: 1 > 2 | L3: 2 > 3 | M3: 3 > k | N3: KL-% | P3: OTT | Q3: KUN | R3: LÖI | S3: TOI | T3: KL | U3: KL-% | W3: OTT | X3: KUN | Y3: LÖI | Z3: TOI | AA3: KL | AB3: KL-% | AD3: IL | AE3: LL | AF3: hSM | AG3: K | AH3: H | AI3: P
B4: 2007 | C4: 7. | D4: JoMa 2 | F4: suomensarja
B5: 2008 | C5: 7. | D5: JoMa 2 | F5: suomensarja
B6: 2009 | C6: 4. | D6: JoMa 2 | F6: suomensarja
B7: 2010 | C7: 9. | D7: JoMa 2 | F7: suomensarja
B8: 2010 | C8: 11. | D8: JoMa | E8: 11 | F8: 1 | G8: 4 | H8: 2 | I8: 11 | J8: 1 | K8: 0 | L8: 5 | M8: 5 | N8: 23.4 % | W8: 3 | X8: 0 | Y8: 2 | Z8: 0 | AA8: 2 | AB8: 28.6 %
B9: 2011
B10: 2012
B11: 2013 | C11: 6. | D11: LMV | F11: suomensarja
B12: 2014 | C12: 3. | D12: LMV | F12: suomensarja
B13: 2015 | C13: 7. | D13: LMV | F13: suomensarja
B14: 2016 | C14: 6. | D14: LMV | F14: suomensarja
B15: 2017 | C15: 2. | D15: LMV | F15: suomensarja
B16: 2018 | C16: 1. | D16: LMV | F16: suomensarja
B17: 2019
B18: 2020
B19: 2021 | C19: 4. | D19: LMV | F19: suomensarja
B20: Yhteensä | E20: 11 | F20: 1 | G20: 4 | H20: 2 | I20: 11 | J20: 1 | K20: 0 | L20: 5 | M20: 5 | N20: 23.4 % | P20: 0 | Q20: 0 | R20: 0 | S20: 0 | T20: 0 | U20: 0.0 % | W20: =PRODUCT(E26) -> 3 | X20: =PRODUCT(F26) -> 0 | Y20: 2 | Z20: 0 | AA20: 2 | AB20: =PRODUCT(N26) -> 28.6 % | AD20: 0 | AE20: 0 | AF20: 0 | AG20: 0 | AH20: 0 | AI20: 0
B21: Pesispörssi | D21: 12.7
B23: URA SUPERISSA | E23: OTT | F23: KUN | G23: LÖI | H23: TOI | I23: KL | K23: ka/L | L23: ka/T | M23: ka/KL | N23: KL-% | P23: ENSIMMÄISET RUNKOSARJASSA
B24: Runkosarja | E24: 11 | F24: 1 | G24: 4 | H24: 2 | I24: 11 | K24: 0.45 | L24: 0.18 | M24: 1.00 | N24: 23.4 % | P24: Ottelu | R24: 06.07. 2010 UPV - JoMa 0-2 (0-6, 0-4) | Z24: 1. ottelu | AB24: 20 v 9 kk 29 pv
B25: Ylempi loppusarja | P25: Lyöty | R25: 06.07. 2010 UPV - JoMa 0-2 (0-6, 0-4) | Z25: 1. ottelu | AB25: 20 v 9 kk 29 pv
B26: Alempi loppusarja | E26: 3 | F26: 0 | G26: 2 | H26: 0 | I26: 2 | K26: 0.67 | L26: 0.00 | M26: 0.67 | N26: 28.6 % | P26: Tuotu | R26: 06.07. 2010 UPV - JoMa 0-2 (0-6, 0-4) | Z26: 1. ottelu | AB26: 20 v 9 kk 29 pv
B27: KAIKKI | E27: 14 | F27: 1 | G27: 6 | H27: 2 | I27: 13 | K27: 0.50 | L27: 0.14 | M27: 0.93 | N27: 24.1 % | P27: Kunnari | R27: 06.07. 2010 UPV - JoMa 0-2 (0-6, 0-4) | Z27: 1. ottelu | AB27: 20 v 9 kk 29 pv
B29: Seurat | D29: JoMa = Joensuun Maila (1957), kasvattajaseura
D30: LMV = Lahden Mailaveikot (1929)

Sheet MSS
B1: Juuso Luostarinen | E1: 7.9.1989 Joensuu
B2: YKKÖSPESIS | E2: Runkosarja | L2: Runkosarja TOP-10 | Q2: Jatkosarjat | X2: SUOMENSARJA | AA2: Runkosarja | AH2: Runkosarja TOP-10 | AM2: Jatkosarjat
B3: Vuosi | C3: Sija | D3: Seura | E3: OTT | F3: KUN | G3: LÖI | H3: TOI | I3: KL | J3: KL-% | L3: LÖI | M3: TOI | N3: L+T | O3: KL | Q3: OTT | R3: KUN | S3: LÖI | T3: TOI | U3: KL | V3: KL-% | X3: Vuosi | Y3: Sija | Z3: Seura | AA3: OTT | AB3: KUN | AC3: LÖI | AD3: TOI | AE3: KL | AF3: KL-% | AH3: LÖI | AI3: TOI | AJ3: L+T | AK3: KL | AM3: OTT | AN3: KUN | AO3: LÖI | AP3: TOI | AQ3: KL | AR3: KL-%
X4: 2007 | Y4: 7. | Z4: JoMa 2 | AA4: 18 | AB4: 1 | AC4: 6 | AD4: 10 | AE4: 49 | AF4: 46.7 % | AG4: 105
X5: 2008 | Y5: 7. | Z5: JoMa 2 | AA5: 13 | AB5: 2 | AC5: 15 | AD5: 11 | AE5: 53 | AF5: 61.6 % | AG5: 86
X6: 2009 | Y6: 4. | Z6: JoMa 2 | AA6: 17 | AB6: 2 | AC6: 32 | AD6: 20 | AE6: 64 | AF6: 50.4 % | AG6: 127 | AH6: 8. | AJ6: 6. | AM6: 1 | AN6: 0 | AO6: 1 | AP6: 0 | AQ6: 1 | AR6: 20.0 % | AS6: 5
X7: 2010 | Y7: 9. | Z7: JoMa 2 | AA7: 10 | AB7: 2 | AC7: 9 | AD7: 9 | AE7: 43 | AF7: 61.4 % | AG7: 70
X9: 2013 | Y9: 6. | Z9: LMV | AA9: 14 | AB9: 0 | AC9: 8 | AD9: 11 | AE9: 44 | AF9: 54.3 % | AG9: 81
X10: 2014 | Y10: 3. | Z10: LMV | AA10: 16 | AB10: 2 | AC10: 10 | AD10: 26 | AE10: 59 | AF10: 62.1 % | AG10: 95 | AI10: 7. | AM10: 2 | AN10: 0 | AO10: 0 | AP10: 0 | AQ10: 1 | AR10: 11.1 % | AS10: 9
X11: 2015 | Y11: 7. | Z11: LMV | AA11: 16 | AB11: 4 | AC11: 11 | AD11: 34 | AE11: 101 | AF11: 76.5 % | AG11: 132 | AI11: 5. | AJ11: 3. | AK11: 1.
X12: 2016 | Y12: 6. | Z12: LMV | AA12: 1 | AB12: 0 | AC12: 0 | AD12: 1 | AE12: 2 | AF12: 66.7 % | AG12: 3
X13: 2017 | Y13: 2. | Z13: LMV | AA13: 15 | AB13: 2 | AC13: 13 | AD13: 20 | AE13: 73 | AF13: 67.0 % | AG13: 109 | AM13: 5 | AN13: 0 | AO13: 1 | AP13: 3 | AQ13: 10 | AR13: 52.6 % | AS13: 19
X14: 2018 | Y14: 1. | Z14: LMV | AA14: 12 | AB14: 4 | AC14: 16 | AD14: 14 | AE14: 55 | AF14: 60.4 % | AG14: =PRODUCT(AE14/AF14) -> 91 | AM14: 8 | AN14: 1 | AO14: 4 | AP14: 5 | AQ14: 24 | AR14: 63.2 % | AS14: =PRODUCT(AQ14/AR14) -> 38.00475059
X16: 2021 | Y16: 4. | Z16: LMV | AA16: 8 | AB16: 2 | AC16: 7 | AD16: 5 | AE16: 32 | AF16: 64.0 % | AG16: 50 | AM16: 2 | AN16: 0 | AO16: 0 | AP16: 0 | AQ16: 4 | AR16: 40.0 % | AS16: 10
B17: YHTEENSÄ | E17: =SUM(E4:E16) -> 0 | F17: =SUM(F4:F16) -> 0 | G17: =SUM(G4:G16) -> 0 | H17: =SUM(H4:H16) -> 0 | I17: =SUM(I4:I16) -> 0 | J17: 0.0 % | K17: =SUM(K4:K16) -> 0 | Q17: =SUM(Q4:Q16) -> 0 | R17: =SUM(R4:R16) -> 0 | S17: =SUM(S4:S16) -> 0 | T17: =SUM(T4:T16) -> 0 | U17: =SUM(U4:U16) -> 0 | V17: 0.0 % | W17: =SUM(W4:W16) -> 0 | X17: YHTEENSÄ | AA17: =SUM(AA4:AA16) -> 140 | AB17: =SUM(AB4:AB16) -> 21 | AC17: =SUM(AC4:AC16) -> 127 | AD17: =SUM(AD4:AD16) -> 161 | AE17: =SUM(AE4:AE16) -> 575 | AF17: =PRODUCT(AE17/AG17) -> 60.6 % | AG17: =SUM(AG4:AG16) -> 949.0143968 | AM17: =SUM(AM4:AM16) -> 18 | AN17: =SUM(AN4:AN16) -> 1 | AO17: =SUM(AO4:AO16) -> 6 | AP17: =SUM(AP4:AP16) -> 8 | AQ17: =SUM(AQ4:AQ16) -> 40 | AR17: =PRODUCT(AQ17/AS17) -> 49.4 % | AS17: =SUM(AS4:AS16) -> 81.00475059
B19: KAIKKI OTTELUT | E19: OTT | F19: KUN | G19: LÖI | H19: TOI | I19: KL | J19: KL-% | L19: ka/L | M19: ka/T | N19: ka/l+t | O19: ka/kl | R19: Seurat | T19: JoMa = Joensuun Maila (1957), kasvattajaseura
B20: SUPERPESIS | E20: 14 | F20: 1 | G20: 6 | H20: 2 | I20: 13 | J20: 24.1 % | K20: =PRODUCT(I20/J20) -> 53.94190871 | L20: =PRODUCT((F20+G20)/E20) -> 0.50 | M20: =PRODUCT(H20/E20) -> 0.14 | N20: =PRODUCT((F20+G20+H20)/E20) -> 0.64 | O20: =PRODUCT(I20/E20) -> 0.93 | T20: LMV = Lahden Mailaveikot (1929)
B21: YKKÖSPESIS | E21: =PRODUCT(E17+Q17) -> 0 | F21: =PRODUCT(F17+R17) -> 0 | G21: =PRODUCT(G17+S17) -> 0 | H21: =PRODUCT(H17+T17) -> 0 | I21: =PRODUCT(I17+U17) -> 0 | J21: 0.0 % | K21: =PRODUCT(K17+W17) -> 0 | L21: 0.00 | M21: 0.00 | N21: 0.00 | O21: 0.00
B22: SUOMENSARJA | E22: =PRODUCT(AA17+AM17) -> 158 | F22: =PRODUCT(AB17+AN17) -> 22 | G22: =PRODUCT(AC17+AO17) -> 133 | H22: =PRODUCT(AD17+AP17) -> 169 | I22: =PRODUCT(AE17+AQ17) -> 615 | J22: =PRODUCT(I22/K22) -> 59.7 % | K22: =PRODUCT(AG17+AS17) -> 1030.019147 | L22: =PRODUCT((F22+G22)/E22) -> 0.98 | M22: =PRODUCT(H22/E22) -> 1.07 | N22: =PRODUCT((F22+G22+H22)/E22) -> 2.05 | O22: =PRODUCT(I22/E22) -> 3.89
B23: YHTEENSÄ | E23: =SUM(E20:E22) -> 172 | F23: =SUM(F20:F22) -> 23 | G23: 139 | H23: 171 | I23: 628 | J23: =PRODUCT(I23/K23) -> 57.9 % | K23: =SUM(K20:K22) -> 1083.961056 | L23: =PRODUCT((F23+G23)/E23) -> 0.94 | M23: =PRODUCT(H23/E23) -> 0.99 | N23: =PRODUCT((F23+G23+H23)/E23) -> 1.94 | O23: =PRODUCT(I23/E23) -> 3.65
